bitfinex-derivatives/quotes_SOLF0:USTF0_20250820
["timestamp","ask_amount","ask_price","bid_price","bid_amount"]
[1755711132856,5.4345,184.0,183.98,2.88827039]
[1755711133261,3.00851721,184.03,183.98,0.03827039]
[1755711133463,5.4346,183.99,183.98,0.03827039]
[1755711133853,8.4646,183.99,183.98,0.03827039]
[1755711134655,143.3246,183.99,183.98,7.039e-05]
[1755711134867,137.89,183.99,183.91,2.85]
[1755711135166,137.89,183.99,183.91,8.2869]
[1755711135369,5.4363,183.94,183.91,2.85]
[1755711135562,5.4363,183.94,183.92,2.85]
[1755711135764,5.4371,183.91,183.85,4.54508401]
[1755711135965,3.03,183.96,183.89,2.85]
[1755711136267,5.4363,183.94,183.9,5.4373]
[1755711136467,5.4363,183.94,183.91,2.85]
[1755711136669,0.03992011,183.95,183.91,2.85]
[1755711136859,0.03992011,183.95,183.91,5.437]
[1755711137062,5.4362,183.94,183.89,2.85]
[1755711137368,5.4362,183.94,183.91,2.85]
[1755711137957,5.4365,183.93,183.91,2.85]
[1755711138163,5.4365,183.93,183.89,5.4375]
[1755711138164,3.03,183.93,183.89,2.85]
[1755711138668,5.437,183.91,183.89,2.85]
[1755711139473,0.03529197,183.94,183.9,2.85]
[1755711139670,0.03529197,183.94,183.85,2.85]
[1755711139970,5.4365,183.93,183.85,2.85]
[1755711140170,0.03876692,183.91,183.85,2.85]
[1755711140470,0.03876692,183.91,183.9,8.2873]
[1755711143373,3.03,184.0,183.96,2.85]
[1755711143679,5.4343,184.01,183.92,2.85]
[1755711143875,134.88,184.03,183.97,5.435]
[1755711144276,5.4343,184.01,183.97,5.435]
[1755711144574,134.88,184.03,183.98,0.04106329]
[1755711144771,5.4338,184.02,183.98,2.89106329]
[1755711144973,137.91,184.03,183.99,2.85]
[1755711145273,137.91,184.03,183.99,8.2846]
[1755711145675,2.93,184.01,183.98,0.04106329]
[1755711145865,2.93,184.0,183.98,0.04106329]
[1755711146070,8.3646,183.99,183.98,0.04106329]
[1755711150771,8.3646,183.99,183.98,6.329e-05]
[1755711154987,5.436,183.95,183.92,2.85]
[1755711155284,2.93,183.99,183.92,2.85]
[1755711155577,134.88,184.03,183.92,2.85]
[1755711155782,8.43629615,184.02,183.92,2.85]
[1755711155978,5.4351,183.98,183.94,5.4359]
[1755711156181,5.4351,183.98,183.92,4.54508401]
[1755711156385,5.4351,183.98,183.94,2.83]
[1755711156582,0.04011358,183.99,183.94,2.83]
[1755711156583,5.47481358,183.99,183.94,0.03667013]
[1755711156884,5.47481358,183.99,183.97,2.83]
[1755711157079,5.47481358,183.99,183.94,0.03667013]
[1755711157278,5.47481358,183.99,183.97,2.83]
[1755711157474,5.47481358,183.99,183.94,0.03667013]
[1755711157682,5.47481358,183.99,183.97,2.83]
[1755711158182,5.4349,183.98,183.97,2.83]
[1755711158388,0.04011358,183.99,183.95,2.83]
[1755711159488,5.4352,183.97,183.95,2.83]
[1755711159688,0.04011358,183.99,183.97,2.83]
[1755711159883,0.04011358,183.99,183.94,0.03667013]
[1755711160187,5.4351,183.98,183.96,2.83]
[1755711160392,0.04011358,183.99,183.96,2.83]
[1755711160889,5.4352,183.97,183.96,2.83]
[1755711161088,0.04011358,183.99,183.96,2.83]
[1755711161389,0.04011358,183.99,183.95,2.83]
[1755711161986,0.04011358,183.99,183.96,4.54508401]
[1755711162183,0.04011358,183.99,183.97,2.83]
[1755711162388,0.04011358,183.99,183.98,2.83]
[1755711162584,0.04011358,183.99,183.98,8.2649]
[1755711163283,368.41,184.09,184.02,5.4335]
[1755711163489,368.41,184.09,184.01,2.83]
[1755711163786,3.00851721,184.11,184.01,2.83]
[1755711163994,2.49957574,184.1,184.01,2.83]
[1755711164194,137.93,184.12,184.01,5.83851721]
[1755711164497,137.93,184.12,184.07,2.83]
[1755711164797,2.93,184.11,184.07,2.83]
[1755711165492,2.93,184.1,184.04,0.03812374]
[1755711165995,2.93,184.1,184.04,5.47122374]
[1755711166694,2.93,184.1,184.04,0.03812374]
[1755711167996,135.0,184.12,184.04,0.03812374]
[1755711169799,135.0,184.12,184.05,2.83]
[1755711170294,5.4316,184.1,184.07,5.4321]
[1755711170499,2.93,184.11,184.04,2.86812374]
[1755711170797,135.0,184.12,184.07,5.4321]
[1755711170996,137.93,184.12,184.07,8.2621]
[1755711171391,5.4314,184.1,184.07,8.2621]
[1755711171992,5.4319,184.09,184.07,2.83]
[1755711172495,5.4312,184.11,184.07,8.2621]
[1755711172993,5.4312,184.11,184.05,2.83]
[1755711173698,135.0,184.12,184.05,2.83]
[1755711173998,135.0,184.12,184.09,5.4316]
[1755711174203,2.93,184.17,184.11,2.83]
[1755711174393,137.87,184.17,184.11,2.83]
[1755711174796,5.4301,184.15,184.12,0.04150528]
[1755711174994,137.87,184.17,184.13,2.83]
[1755711175190,137.87,184.17,184.13,8.2605]
[1755711175597,134.94,184.17,184.12,0.04150528]
[1755711175795,134.94,184.17,184.14,8.49]
[1755711176294,137.95,184.17,184.12,0.04150528]
[1755711176495,134.94,184.17,184.14,3.06]
[1755711176690,134.94,184.17,184.15,3.06]
[1755711177103,5.4292,184.18,184.15,3.06]
[1755711177398,3.01,184.2,184.15,3.06]
[1755711177800,3.01,184.19,184.15,3.06]
[1755711177991,3.01,184.18,184.12,3.10150528]
[1755711178198,3.01,184.18,184.13,8.4905]
[1755711178496,3.01,184.18,184.14,3.06]
[1755711178700,5.4293,184.17,184.14,8.4902]
[1755711179400,5.4296,184.16,184.14,3.06]
[1755711179601,5.4296,184.16,184.13,8.52929349]
[1755711179902,137.94851721,184.21,184.14,3.06]
[1755711179903,140.95851721,184.21,184.14,3.06]
[1755711180105,5.4293,184.18,184.14,8.4901]
[1755711180301,140.95851721,184.21,184.14,3.06]
[1755711180497,5.4296,184.17,184.14,8.4901]
[1755711181102,3.01,184.2,184.13,0.03889349]
[1755711182597,5.4302,184.14,184.13,0.03889349]
[1755711182900,8.4402,184.14,184.13,0.03889349]
[1755711185702,8.4402,184.14,183.98,62.0]
[1755711185703,3.01,184.11,184.03,3.06]
[1755711186200,3.01,184.11,184.04,5.433]
[1755711186402,3.01,184.11,184.03,3.06]
[1755711186799,5.4322,184.08,184.03,8.4934]
[1755711187000,5.4322,184.08,184.04,3.06]
[1755711187403,5.4322,184.08,184.04,5.433]
[1755711187707,0.03790967,184.09,184.06,3.06]
[1755711189398,5.46960967,184.09,184.06,3.06]
[1755711190606,0.03790967,184.09,184.02,3.00851721]
[1755711190904,0.03790967,184.09,184.03,3.06]
[1755711191108,137.89,184.14,184.08,3.06]
[1755711191305,0.03453827,184.08,184.03,3.06]
[1755711191606,3.01,184.12,184.0,3.00851721]
[1755711191607,3.01,184.12,184.06,3.06]
[1755711192008,0.03532714,184.07,184.06,3.06]
[1755711192306,3.01,184.12,184.06,3.06]
[1755711192701,0.03841507,184.08,184.06,3.06]
[1755711193108,0.03841507,184.08,184.07,3.06]
[1755711193904,0.03841507,184.08,184.06,5.4325]
[1755711194104,0.03841507,184.08,184.06,8.4925]
[1755711194708,0.03841507,184.08,184.07,3.06]
[1755711195804,0.03841507,184.08,184.07,8.4923]
[1755711197005,134.96,184.15,184.06,3.00851721]
[1755711197210,5.4301,184.15,184.11,3.06]
[1755711197507,3.01,184.15,184.11,8.4908]
[1755711197703,5.4302,184.14,184.11,8.4908]
[1755711199002,8.4402,184.14,184.11,3.06]
[1755711199203,8.4402,184.14,184.11,3.09502558]
[1755711200009,3.01,184.19,184.11,3.09502558]
[1755711200506,5.4299,184.15,184.12,3.06]
[1755711200898,3.01,184.18,184.12,3.06]
[1755711201101,5.4301,184.15,184.12,3.06]
[1755711201611,8.4401,184.15,184.12,3.06]
[1755711202910,8.4401,184.15,184.12,8.4907]
[1755711203208,3.01,184.19,184.12,8.4907]
[1755711203807,3.01,184.15,184.12,3.06]
[1755711204211,3.00851721,184.2,184.12,3.06]
[1755711204404,3.01,184.19,184.12,3.06]
[1755711204599,3.01,184.19,184.11,0.03502558]
[1755711205004,134.82,184.21,184.11,0.03502558]
[1755711205005,3.00851721,184.17,184.11,0.03502558]
[1755711205402,5.4303,184.14,184.11,3.09502558]
[1755711205605,134.82,184.21,184.11,0.03502558]
[1755711205806,2.98,184.19,184.12,2.9]
[1755711206007,5.4295,184.17,184.14,2.9]
[1755711206412,2.98,184.19,184.12,2.9]
[1755711206610,134.82,184.21,184.12,2.9]
[1755711206814,137.8,184.21,184.12,2.9]
[1755711207314,2.98,184.2,184.13,2.9]
[1755711207509,2.98,184.2,184.12,2.9]
[1755711209213,2.98,184.19,184.15,8.3297]
[1755711209607,134.82,184.21,184.15,2.9]
[1755711209814,2.98,184.19,184.15,2.9]
[1755711210009,2.98,184.18,184.12,2.9]
[1755711212113,2.98,184.18,184.14,5.43]
[1755711212415,2.98,184.17,184.1,2.9]
[1755711212614,2.98,184.17,184.11,5.431]
[1755711213014,2.98,184.17,184.1,2.9]
[1755711213612,8.4099,184.15,184.11,8.3309]
[1755711213812,134.82,184.21,184.08,2.9]
[1755711214011,2.98,184.18,184.08,2.9]
[1755711214718,5.4297,184.16,184.13,5.4305]
[1755711214921,8.4097,184.16,184.13,5.4305]
[1755711215311,2.98,184.16,184.13,8.3305]
[1755711215718,5.4294,184.17,184.14,5.4301]
[1755711216017,5.4291,184.18,184.14,2.9]
[1755711216217,2.98,184.19,184.15,2.9]
[1755711217013,2.98,184.2,184.11,2.9]
[1755711217213,134.82,184.21,184.11,2.9]
[1755711217214,3.00851721,184.19,184.11,2.9]
[1755711217521,5.4296,184.16,184.12,5.4305]
[1755711217708,2.98,184.15,184.12,5.4305]
[1755711217914,2.98,184.15,184.06,3.00851721]
[1755711218218,2.98,184.15,184.12,8.3306]
[1755711218713,8.4101,184.15,184.11,5.431]
[1755711218909,8.4101,184.15,184.11,8.331]
[1755711219120,8.4101,184.15,184.11,2.9]
[1755711219513,8.4101,184.15,184.12,5.4307]
[1755711222316,2.98,184.23,184.13,2.9]
[1755711223022,8.4084,184.2,184.16,5.4296]
[1755711223222,2.98,184.23,184.16,5.4296]
[1755711223422,2.98,184.2,184.14,2.9]
[1755711224724,8.4085,184.2,184.14,2.9]
[1755711225125,2.98,184.23,184.17,2.9]
[1755711225628,5.4278,184.22,184.19,5.4284]
[1755711225919,2.98,184.23,184.13,2.9]
[1755711226320,8.4076,184.23,184.2,5.4283]
[1755711226522,120.87185445,184.24,184.16,2.9]
[1755711226823,138.32,184.26,184.16,2.9]
[1755711227021,138.32,184.26,184.23,5.4273]
[1755711227022,143.7467,184.26,184.23,5.4273]
[1755711227521,138.32,184.26,184.23,5.4273]
[1755711227928,2.98,184.26,184.23,5.4273]
[1755711228125,8.4069,184.26,184.23,5.4273]
[1755711228325,2.98,184.26,184.22,5.4277]
[1755711228527,2.98,184.26,184.22,8.3277]
[1755711229132,8.4072,184.25,184.22,2.9]
[1755711229325,2.98,184.25,184.22,2.9]
[1755711230624,5.4273,184.24,184.22,2.9]
[1755711231332,2.98,184.28,184.22,8.3278]
[1755711231632,5.4266,184.27,184.23,5.4273]
[1755711231827,8.4066,184.27,184.23,8.3273]
[1755711232021,2.98,184.27,184.23,8.3273]
[1755711232233,5.4269,184.26,184.23,2.93957687]
[1755711232728,8.4065,184.27,184.23,5.46687687]
[1755711232931,2.98,184.3,184.24,2.9]
[1755711233125,2.98,184.28,184.24,2.9]
[1755711233326,8.4063,184.28,184.24,2.9]
[1755711234234,5.4258,184.29,184.26,2.9]
[1755711235331,5.4261,184.28,184.26,2.9]
[1755711235533,135.34,184.31,184.26,2.9]
[1755711235735,2.98,184.3,184.26,8.3266]
[1755711235938,2.84,184.29,184.23,3.08957687]
[1755711236234,2.84,184.27,184.23,0.03957687]
[1755711236534,5.4273,184.24,184.23,0.03957687]
[1755711236841,8.2673,184.24,184.23,0.03957687]
[1755711240239,136.46,184.25,184.23,0.03957687]
[1755711240444,136.46,184.25,184.24,3.05]
[1755711240638,2.84,184.28,184.24,3.05]
[1755711241044,136.48,184.29,184.23,0.03957687]
[1755711241237,136.48,184.29,184.26,3.05]
[1755711241837,141.9058,184.29,184.26,3.05]
[1755711242240,136.48,184.29,184.26,3.05]
[1755711242446,136.48,184.29,184.23,0.03957687]
[1755711242447,136.48,184.29,184.27,3.05]
[1755711242745,136.48,184.29,184.23,3.08957687]
[1755711243046,8.2666,184.27,184.23,3.08957687]
[1755711243345,5.4266,184.27,184.24,3.05]
[1755711244141,8.2662,184.28,184.24,3.05]
[1755711244340,8.2662,184.28,184.24,8.4772]
[1755711246245,5.4264,184.27,184.24,8.4772]
[1755711246445,2.84,184.28,184.24,8.4772]
[1755711247449,8.2663,184.28,184.24,8.4772]
[1755711248450,136.48,184.29,184.25,3.05]
[1755711248647,139.32,184.29,184.25,3.05]
[1755711248948,139.32,184.29,184.26,5.4266]
[1755711249146,136.48,184.29,184.24,3.05]
[1755711249345,136.48,184.29,184.26,5.4264]
[1755711249545,136.48,184.29,184.26,8.4764]
[1755711250149,139.32,184.29,184.26,8.4764]
[1755711250343,144.746,184.29,184.26,8.4764]
[1755711251551,139.32,184.29,184.27,5.4263]
[1755711251754,3.00851721,184.36,184.28,3.05]
[1755711252044,2.84,184.34,184.28,3.05]
[1755711252350,136.2,184.35,184.21,7.55089806]
[1755711252550,2.84,184.32,184.25,3.05]
[1755711252951,5.4255,184.3,184.28,5.4261]
[1755711253249,2.84,184.32,184.28,5.4261]
[1755711253447,5.4255,184.31,184.28,5.4261]
[1755711253652,2.84,184.31,184.27,5.4262]
[1755711253949,2.84,184.31,184.27,8.4762]
[1755711254150,5.4255,184.3,184.27,8.4762]
[1755711255152,8.2655,184.3,184.27,5.4262]
[1755711255352,5.4253,184.31,184.28,8.476]
[1755711255852,5.425,184.32,184.29,8.4756]
[1755711256049,2.84,184.33,184.29,8.4756]
[1755711256250,2.84,184.33,184.3,3.05]
[1755711256451,2.84,184.33,184.3,8.4753]
[1755711256846,2.84,184.34,184.3,3.08852247]
[1755711257043,5.4247,184.33,184.3,8.51392247]
[1755711257448,2.84,184.34,184.3,3.08852247]
[1755711257650,2.84,184.32,184.3,0.03852247]
[1755711258659,5.4252,184.31,184.3,0.03852247]
[1755711258948,8.2652,184.31,184.3,0.03852247]
[1755711263358,8.8052,184.31,184.3,2.247e-05]
[1755711263554,5.4266,184.27,184.21,3.05]
[1755711263759,2.84,184.29,184.21,3.05]
[1755711264162,3.00851721,184.26,184.17,3.05]
[1755711264455,2.84,184.25,184.17,3.05]
[1755711264661,2.84,184.22,184.15,1.28727]
[1755711265070,5.4284,184.21,184.17,5.4291]
[1755711265364,2.84,184.22,184.15,1.28727]
[1755711265665,5.4286,184.2,184.16,8.2594]
[1755711265964,5.4286,184.2,184.17,2.83]
[1755711266864,2.93,184.22,184.15,1.28727]
[1755711267065,2.93,184.19,184.15,1.28727]
[1755711267367,8.3596,184.16,184.15,1.28727]
[1755711267562,2.93,184.19,184.15,1.28727]
[1755711267757,2.93,184.18,184.15,1.28727]
[1755711267961,2.96872399,184.17,184.15,1.28727]
[1755711268965,8.39832399,184.17,184.15,1.28727]
[1755711270674,0.03872399,184.17,184.16,2.83]
[1755711271759,0.03872399,184.17,184.15,4.11727]
[1755711271966,0.03872399,184.17,184.15,1.28727]
[1755711272161,0.03872399,184.17,184.16,2.83]
[1755711274070,2.93,184.24,184.18,2.83]
[1755711274071,5.4279,184.22,184.18,2.83]
[1755711274369,2.93,184.24,184.17,8.2591]
[1755711274573,5.4281,184.22,184.18,2.83]
[1755711274762,2.93,184.24,184.18,2.83]
[1755711274962,2.93,184.24,184.15,1.28727]
[1755711274963,3.00851721,184.22,184.15,1.28727]
[1755711275772,5.4289,184.19,184.16,2.83]
[1755711275973,3.00851721,184.22,184.15,4.11727]
[1755711276574,5.4285,184.2,184.16,8.2595]
[1755711276775,5.4285,184.2,184.17,2.83]
[1755711276969,5.4285,184.2,184.16,2.83]
[1755711277366,5.4285,184.2,184.17,2.83]
[1755711277571,5.4285,184.2,184.16,2.83]
[1755711277777,5.4282,184.21,184.17,2.83]
[1755711278076,5.4282,184.21,184.18,2.83]
[1755711278471,5.4282,184.21,184.17,5.4291]
[1755711278672,367.71,184.26,184.19,2.83]
[1755711279073,5.4273,184.24,184.2,5.4282]
[1755711279378,139.11,184.27,184.21,2.83]
[1755711279679,5.4272,184.25,184.22,5.4278]
[1755711280283,5.4272,184.25,184.22,8.2578]
[1755711280472,5.4272,184.25,184.23,2.83]
[1755711282576,5.4272,184.25,184.22,8.2578]
[1755711283988,2.93,184.26,184.18,2.83]
[1755711284381,5.93851721,184.26,184.18,2.83]
[1755711284580,2.93,184.25,184.18,2.83]
[1755711284983,2.93,184.25,184.18,8.2589]
[1755711285987,2.93,184.25,184.19,5.4286]
[1755711287285,136.18,184.27,184.22,2.83]
[1755711287487,2.93,184.26,184.22,2.83]
[1755711287687,2.93,184.26,184.22,8.2578]
[1755711287886,2.93,184.26,184.23,0.03645844]
[1755711288080,5.93851721,184.3,184.23,0.03645844]
[1755711288387,2.93,184.3,184.24,2.83]
[1755711288592,139.19,184.33,184.24,2.83]
[1755711289392,136.26,184.33,184.24,2.83]
[1755711291690,136.26,184.33,184.27,5.4262]
[1755711292391,139.19,184.33,184.28,8.29557896]
[1755711292893,139.19,184.33,184.29,2.83]
[1755711293095,136.26,184.33,184.29,2.83]
[1755711293294,139.19,184.33,184.29,2.83]
[1755711293894,139.19,184.33,184.29,8.2558]
[1755711294084,2.93,184.32,184.28,2.86947896]
[1755711294786,136.26,184.33,184.28,0.03947896]
[1755711294997,2.93,184.31,184.28,0.03947896]
[1755711295998,5.4257,184.3,184.28,0.03947896]
[1755711296699,2.94,184.32,184.28,0.03947896]
[1755711296896,136.26,184.33,184.28,0.03947896]
[1755711297397,5.4258,184.29,184.28,0.03947896]
[1755711298589,8.3658,184.29,184.28,0.03947896]
[1755711300301,5.4256,184.3,184.28,0.03947896]
[1755711300697,2.94,184.32,184.28,0.03947896]
[1755711300895,2.94,184.3,184.28,0.03947896]
[1755711301089,2.94,184.32,184.28,0.03947896]
[1755711301295,136.26,184.33,184.28,0.03947896]
[1755711301600,2.94,184.3,184.28,0.03947896]
[1755711301795,139.2,184.33,184.28,2.83947896]
[1755711301996,136.26,184.33,184.29,2.8]
[1755711302197,136.26,184.33,184.3,2.8]
[1755711302404,0.0401117,184.32,184.3,2.8]
[1755711303394,0.0401117,184.32,184.29,2.8]
[1755711303902,0.0401117,184.32,184.29,8.2256]
[1755711304098,0.0401117,184.32,184.29,5.4256]
[1755711304301,0.0401117,184.32,184.29,8.2256]
[1755711304492,0.0401117,184.32,184.29,5.4256]
[1755711304701,0.0401117,184.32,184.3,2.8]
[1755711306005,2.9801117,184.32,184.28,8.26547896]
[1755711306204,2.94,184.29,184.28,0.03947896]
[1755711306906,2.94,184.29,184.2,2.8]
[1755711307091,136.0,184.28,184.22,5.4276]
[1755711307291,136.0,184.28,184.2,2.8]
[1755711307493,2.94,184.23,184.16,2.8]
[1755711308406,5.4283,184.21,184.17,5.4292]
[1755711308606,0.03640284,184.21,184.17,2.8]
[1755711308808,2.97640284,184.21,184.17,2.8]
[1755711309008,5.4285,184.2,184.17,2.8]
[1755711310205,8.3685,184.2,184.16,5.4295]
[1755711310715,8.3685,184.2,184.16,8.2295]
[1755711311211,2.94,184.2,184.15,6.71717]
[1755711311412,2.94,184.17,184.15,1.28727]
[1755711311608,139.06492005,184.21,184.15,1.28727]
[1755711311805,2.94,184.16,184.15,1.28727]
[1755711314323,3.00851721,184.18,184.15,1.28727]
[1755711314820,2.94,184.2,184.15,4.08727]
[1755711315020,2.94,184.19,184.15,4.08727]
[1755711315818,3.04492005,184.21,184.15,1.28727]
[1755711316220,3.04492005,184.21,184.17,8.2293]
[1755711316519,0.03640284,184.21,184.18,2.8]
[1755711317615,0.03640284,184.21,184.18,8.229]
[1755711318213,0.03640284,184.21,184.19,5.4287]
[1755711318417,0.03640284,184.21,184.2,2.8]
[1755711319315,0.03640284,184.21,184.2,8.2284]
[1755711322033,367.6,184.31,184.2,3.34]
[1755711322320,367.6,184.31,184.2,2.8]
[1755711322527,367.6,184.31,184.25,5.4268]
[1755711323023,364.66,184.31,184.26,5.4265]
[1755711323225,367.6,184.31,184.19,3.00851721]
[1755711323523,2.94,184.3,184.26,0.041297]
[1755711323826,2.94,184.29,184.26,0.041297]
[1755711324121,2.94,184.29,184.24,5.4271]
[1755711324328,2.94,184.27,184.26,0.03522622]
[1755711324726,2.94,184.27,184.23,5.4273]
[1755711325124,2.94,184.29,184.25,0.0411709]
[1755711325326,2.94,184.26,184.25,0.0411709]
[1755711325627,2.94,184.26,184.22,2.91]
[1755711325825,5.4268,184.26,184.24,0.04078388]
[1755711326131,138.84,184.33,184.24,2.95078388]
[1755711326329,5.4257,184.3,184.26,8.3365]
[1755711326825,2.8,184.3,184.27,5.4262]
[1755711327132,2.8,184.3,184.26,2.91]
[1755711327425,2.8,184.32,184.24,5.46788388]
[1755711327730,2.8,184.32,184.25,2.91]
[1755711328229,2.8,184.32,184.27,8.3361]
[1755711328429,2.8,184.32,184.24,0.04078388]
[1755711328430,5.80851721,184.31,184.24,0.04078388]
[1755711328832,3.00851721,184.28,184.24,0.04078388]
[1755711329029,2.8,184.27,184.24,0.04078388]
[1755711329331,2.8,184.25,184.24,0.04078388]
[1755711330524,2.8,184.25,184.15,1.28727]
[1755711330525,5.80851721,184.25,184.15,1.28727]
[1755711330725,2.8,184.24,184.15,1.28727]
[1755711331121,2.8,184.24,184.15,6.71697]
[1755711331527,2.8,184.24,184.15,1.28727]
[1755711332034,0.03429787,184.21,184.16,2.91]
[1755711332422,2.8,184.25,184.17,2.91]
[1755711332734,0.03639854,184.2,184.17,2.91]
[1755711332930,0.03639854,184.2,184.18,2.91]
[1755711333132,0.03639854,184.2,184.19,2.91]
[1755711333532,0.03639854,184.2,184.19,8.3387]
[1755711334632,2.8,184.29,184.19,2.91]
[1755711335535,2.8,184.29,184.24,8.337]
[1755711335728,5.4261,184.28,184.24,2.91]
[1755711336536,137.34,184.34,184.16,2.91]
[1755711336734,2.8,184.31,184.16,2.91]
[1755711337131,5.00036005,184.32,184.15,1.28727]
[1755711337132,5.4272,184.25,184.21,8.338]
[1755711337731,5.4267,184.26,184.21,2.91]
[1755711337939,2.8,184.28,184.16,2.91]
[1755711338237,2.8,184.28,184.18,2.91]
[1755711338433,8.2262,184.28,184.2,0.03666224]
[1755711338630,8.2262,184.28,184.21,2.91]
[1755711339436,5.4264,184.27,184.21,2.91]
[1755711339640,2.8,184.28,184.21,2.91]
[1755711339834,5.4274,184.24,184.2,0.03666224]
[1755711340037,2.8,184.24,184.2,0.03666224]
[1755711340540,2.8,184.29,184.21,2.91]
[1755711341139,5.4262,184.28,184.21,2.91]
[1755711341343,2.8,184.33,184.21,2.91]
[1755711341639,2.8,184.33,184.27,2.91]
[1755711342243,2.8,184.36,184.3,5.4254]
[1755711342942,2.8,184.36,184.3,8.3354]
[1755711342943,5.4247,184.33,184.3,8.3354]
[1755711343143,2.8,184.36,184.31,2.91]
[1755711343440,2.8,184.35,184.28,0.03427448]
[1755711343835,2.8,184.35,184.26,2.91]
[1755711344142,2.8,184.35,184.27,2.91]
[1755711344635,2.8,184.35,184.27,8.3363]
[1755711344841,2.8,184.35,184.29,0.03545437]
[1755711345230,2.8,184.35,184.23,2.91]
[1755711345438,2.8,184.34,184.23,2.91]
[1755711345939,2.8,184.34,184.27,0.03512961]
[1755711349539,2.8,184.34,184.27,2.94512961]
[1755711350134,2.8,184.34,184.28,5.426]
[1755711350333,2.8,184.34,184.27,2.94512961]
[1755711350638,2.8,184.34,184.3,2.91]
[1755711351147,2.8,184.38,184.3,2.91]
[1755711351742,2.8,184.38,184.31,5.4251]
[1755711351939,2.8,184.38,184.32,0.03819315]
[1755711352537,137.54,184.39,184.32,2.94819315]
[1755711353140,2.8,184.38,184.32,2.94819315]
[1755711354334,2.8,184.38,184.32,8.37289315]
[1755711354536,2.8,184.38,184.32,2.94819315]
[1755711354941,2.8,184.38,184.34,2.91]
[1755711355145,140.34,184.39,184.35,2.91]
[1755711355350,2.8,184.38,184.32,0.03819315]
[1755711355641,2.8,184.38,184.34,2.91]
[1755711355839,140.34,184.39,184.32,0.03819315]
[1755711358242,140.34,184.39,184.33,3.07]
[1755711358443,137.54,184.39,184.33,3.07]
[1755711358643,137.54,184.39,184.34,8.4941]
[1755711358851,140.34,184.39,184.34,8.4941]
[1755711359144,140.34,184.39,184.35,3.07]
[1755711359943,140.34,184.39,184.32,3.10819315]
[1755711360540,140.34,184.39,184.32,0.03819315]
[1755711360746,137.54,184.39,184.32,3.10819315]
[1755711360944,137.54,184.39,184.34,5.4241]
[1755711361147,137.54,184.39,184.35,3.07]
[1755711361451,2.8,184.38,184.32,0.03819315]
[1755711361946,2.8,184.38,184.32,5.46309315]
[1755711362142,2.8,184.38,184.32,0.03819315]
[1755711363048,2.8,184.38,184.33,3.07]
[1755711363350,137.54,184.39,184.33,3.07]
[1755711363553,137.54,184.39,184.33,8.4944]
[1755711363849,137.54,184.39,184.33,3.07]
[1755711366050,140.34,184.39,184.33,3.07]
[1755711366757,2.8,184.38,184.32,0.03819315]
[1755711366948,2.8,184.34,184.32,0.03819315]
[1755711367143,2.8,184.33,184.32,0.03819315]